Cogmind - Beta 10.1 @@@ ROGUE MODE // 2020.09.28 @ 14:33:16 Player: Puzzlebark Result: Destroyed by as-41250 with Assembled Rifle Performance ------------- Evolutions (0) 0 Regions Visited (2) 400 Robots Destroyed (12) 60 Value Destroyed (161) 161 Prototype IDs (0) 0 Alien Tech Used (0) 0 Bonus (0) 0 TOTAL SCORE: 621 Bonus ------- None Cogmind --------- Core Integrity 0/250 Matter 243/300 Energy 249/250 System Corruption 0% Temperature Cool (0) Movement Treading (180) Ox1 Location -10/Mines Parts ------- > --- POWER (1) -------- Ion Engine > --- PROPULSION (2) --- Light Treads Light Treads > --- UTILITY (2) ------ Large Storage Unit High-capacity Storage Unit > --- WEAPON (2) ------- Light Assault Rifle > --- INVENTORY (18) --- Medium Storage Unit Large Storage Unit Assault Rifle Peak State ------------ > --- POWER ------------ Ion Engine > --- PROPULSION ------- Light Treads Light Treads > --- UTILITY ---------- Large Storage Unit Large Storage Unit > --- WEAPON ----------- Small Laser Assault Rifle > --- INVENTORY -------- Ion Engine Wheel Compact Wheel Small Storage Unit Light Assault Rifle [Rating: 7] Favorites ----------- Power Ion Engine Engine Ion Engine Propulsion Light Treads Treads Light Treads Utility Large Storage Unit Storage Large Storage Unit Weapon Small Laser Energy Gun Small Laser Ballistic Gun Assault Rifle Ballistic Cannon Light Cannon Build | -11 -10 -10 ------- Run | Scr Mat Min Slots Evolved . | . . . Power . | . . . Propulsion . | . . . Utility . | . . . Weapon . | . . . Parts Attached 14 | 6 3 5 Power 2 | 1 . 1 Engine 2 | 1 . 1 Core . | . . . Reactor . | . . . Propulsion 4 | 2 . 2 Treads 4 | 2 . 2 Leg . | . . . Wheel . | . . . Hover . | . . . Flight . | . . . Utility 4 | 1 2 1 Device . | . . . Storage 4 | 1 2 1 Processor . | . . . Hackware . | . . . Protection . | . . . Artifact . | . . . Weapon 4 | 2 1 1 Energy Gun 1 | 1 . . Energy Cannon . | . . . Ballistic Gun 2 | 1 . 1 Ballistic Cannon 1 | . 1 . Launcher . | . . . Special Weapon . | . . . Impact Weapon . | . . . Slashing Weapon . | . . . Piercing Weapon . | . . . Special Melee Weapon . | . . . Unidentified Prototypes . | . . . Parts Lost 5 | . . 5 Power 1 | . . 1 Propulsion 2 | . . 2 Utility . | . . . Weapon 2 | . . 2 Highest Loss Streak 4 | . . 4 Average Slot Usage (%) 93 | . 99 83 Engine 13 | . 14 13 Treads 27 | . 28 27 Storage 27 | . 27 28 Energy Gun 9 | . 14 . Ballistic Gun 4 | . 6 1 Ballistic Cannon 9 | . 7 12 Naked Turns . | . . . Heaviest Build 56 | 12 41 56 Greatest Support 40 | 40 40 40 Greatest Overweight (x) 2 | . 1 2 Average Overweight (x) . | . . . Largest Inventory Capacity 18 | 6 16 18 Average Capacity 14 | 5 15 16 Most Carried 7 | 4 7 7 Average Carried 5 | 1 5 5 Final Capacity 18 | 6 16 18 Final Carried 6 | 4 6 3 Class Distribution -------------------- 100% | Mutant Dominant Class ---------------- Mutant | -10/Materials Mutant | -10/Mines Resources | -11 -10 -10 ----------- Run | Scr Mat Min Matter Collected 430 | 172 207 51 Remotely . | . . . Salvage Created 309 | . 275 34 Parts 25 | . 19 6 Haulers Intercepted . | . . . Recyclers Shooed . | . . . Parts Field Recycled . | . . . Retrieved Matter . | . . . Parts Self-Destructed . | . . . Prevented . | . . . Kills | -11 -10 -10 ------- Run | Scr Mat Min Combat Hostiles Destroyed 9 | . 5 4 Guns 6 | . 5 1 Cannons 3 | . . 3 Classes Destroyed 6 | . 5 1 Worker 1 | . 1 . Recycler 1 | . 1 . Watcher 1 | . 1 . Swarmer 6 | . 3 3 Grunt 2 | . 2 . Assembled 1 | . . 1 Best Kill Streak 7 | . 7 3 Combat Bots Only 5 | . 5 3 Max Kills in Single Turn 1 | . 1 1 Gunslinging . | . . . Exploded . | . . . Melee . | . . . Uniques/NPCs Destroyed . | . . . Combat | -11 -10 -10 -------- Run | Scr Mat Min Damage Taken 1044 | . 127 917 Core 254 | . 29 225 Absorbed by Shields . | . . . Core Remaining (%) 100 | 100 . . Volleys Fired 59 | . 30 29 Largest 2 | . 2 1 Hottest 60 | . 60 35 Shots Fired 64 | . 35 29 Gun 43 | . 30 13 Cannon 21 | . 5 16 Launcher . | . . . Special . | . . . Kinetic 59 | . 30 29 Thermal 5 | . 5 . Explosive . | . . . Electromagnetic . | . . . Robot Hit Streak 3 | . 3 3 Robot Miss Streak 4 | . 4 3 Penetration Max . | . . . Secondary Targets . | . . . Shots Hit Robots 34 | . 17 17 Core Hits 19 | . 11 8 Critical Hits . | . . . Critical Kills . | . . . Critical Parts Destroyed . | . . . Melee Attacks . | . . . Impact . | . . . Slashing . | . . . Piercing . | . . . Sneak Attacks . | . . . Combat Hostiles . | . . . Follow-up Attacks . | . . . Damage Inflicted 497 | . 272 225 Guns 295 | . 237 58 Cannons 202 | . 35 167 Explosions . | . . . Melee . | . . . Ramming . | . . . Kinetic 441 | . 216 225 Thermal 56 | . 56 . Explosive . | . . . Electromagnetic . | . . . Impact . | . . . Slashing . | . . . Piercing . | . . . Highest Corruption . | . . . Average Corruption . | . . . Corruption Purged . | . . . Overload Shots . | . . . Overflow Damage 3 | . . 3 Projectiles 3 | . . 3 Explosions . | . . . Melee . | . . . Knockbacks 3 | . 1 2 Impact . | . . . Kinetic 3 | . 1 2 Secondary . | . . . Self-Inflicted Damage . | . . . Shots . | . . . Rammed . | . . . Targets Rammed . | . . . Kicked . | . . . Crushed . | . . . Highest Temperature 18 | . 18 . Average Temperature 15 | . 15 . Received Heat Transfer 24 | . 24 . Siege Activations . | . . . Robots Corrupted . | . . . Combat Hostiles . | . . . Parts Fried . | . . . Impact Corruptions . | . . . Robots Melted . | . . . Combat Hostiles . | . . . Parts Melted . | . . . Heat Transferred 125 | . 125 . Parts Sabotaged . | . . . Parts Stolen . | . . . Parts Stripped . | . . . Power Chain Reactions . | . . . Missiles Intercepted . | . . . Alert | -11 -10 -10 ------- Run | Scr Mat Min Peak Influence 150 | . 150 79 Initial 4 | . . 4 Average 53 | . 57 62 Maximum Alert Level . | . . . Low Security (%) 100 | 100 100 100 Level 1 . | . . . Level 2 . | . . . Level 3 . | . . . Level 4 . | . . . Level 5 . | . . . High Security . | . . . Max Security . | . . . Squads Dispatched . | . . . Investigation . | . . . Extermination . | . . . Reinforcement . | . . . Assault . | . . . Garrison . | . . . Intercept . | . . . Construction Impeded . | . . . Haulers Reinforced . | . . . Stealth | -11 -10 -10 --------- Run | Scr Mat Min Distress Signals 2 | . 1 1 Communications Jammed . | . . . Distress Signals . | . . . Times Spotted 18 | . 10 8 Peak Tracking Total 5 | . 5 3 Tactical Retreats . | . . . Traps | -11 -10 -10 ------- Run | Scr Mat Min Traps Triggered . | . . . Indirectly . | . . . Trap Hack Attempts . | . . . Triggered . | . . . Disarmed . | . . . Reprogrammed . | . . . Reused . | . . . Traps Extracted . | . . . Installed . | . . . Triggered . | . . . Machines | -11 -10 -10 ---------- Run | Scr Mat Min Machines Disabled 1 | . . 1 Max in Single Turn 1 | . . 1 Machines Sabotaged . | . . . Garrisons Compromised . | . . . Overloaded Fab Kills . | . . . Fab Network Shutdowns . | . . . Hacking | -11 -10 -10 --------- Run | Scr Mat Min Machines Accessed 4 | . 4 . Terminals 4 | . 4 . Fabricators . | . . . Repair Stations . | . . . Recycling Units . | . . . Scanalyzers . | . . . Garrison Access . | . . . Total Hacks 10 | . 10 . Successful 8 | . 8 . Failed 2 | . 2 . Catastrophic . | . . . Database Lockouts . | . . . Manual 9 | . 9 . Terminals 10 | . 10 . Fabricators . | . . . Repair Stations . | . . . Recycling Units . | . . . Scanalyzers . | . . . Garrison Access . | . . . Terminal Hacks 4 | . 4 . Terminal Index 1 | . 1 . Locate Traps 2 | . 2 . Zone Layout 1 | . 1 . Fabricator Hacks . | . . . Repair Station Hacks . | . . . Recycling Unit Hacks . | . . . Scanalyzer . | . . . Garrison Access Hacks . | . . . Unauthorized Hacks 4 | . 4 . Terminals 4 | . 4 . Botnet 2 | . 2 . Operators 2 | . 2 . Fabricators . | . . . Repair Stations . | . . . Recycling Units . | . . . Scanalyzers . | . . . Garrison Access . | . . . Data Cores Recovered . | . . . Used . | . . . Hacking Detections 3 | . 3 . Full Trace Events . | . . . Feedback Events . | . . . Feedback Blocked . | . . . Robot Schematics Acquired . | . . . Robots Built . | . . . Matter . | . . . Time . | . . . Total Robot Build Rating . | . . . Part Schematics Acquired . | . . . Parts Built . | . . . Matter . | . . . Time . | . . . Total Part Build Rating . | . . . Parts Repaired . | . . . Time . | . . . Parts Recycled . | . . . Recycled Matter . | . . . Retrieved Matter . | . . . Retrieved Components . | . . . Parts Scanalyzed . | . . . Part Schematics Acquired . | . . . Parts Damaged . | . . . Bothacking | -11 -10 -10 ------------ Run | Scr Mat Min Used RIF Installer . | . . . Robots Hacked . | . . . Non-combat . | . . . Combat . | . . . Robot Hacks Applied . | . . . Relay Couplers Released . | . . . Robots Rewired . | . . . Allies Hacked . | . . . Hacks Repelled . | . . . Allies | -11 -10 -10 -------- Run | Scr Mat Min Total Allies 3 | . . 3 Largest Group 3 | . . 3 Highest-Rated Group 40 | . . 40 Highest-Rated Ally 16 | . . 16 Total Orders . | . . . Ally Attacks 7 | . . 7 Total Damage 69 | . . 69 Kills . | . . . Allies Corrupted . | . . . Allies Melted . | . . . Intel | -11 -10 -10 ------- Run | Scr Mat Min Robot Analysis Total . | . . . Derelict Logs Recovered . | . . . Drone Launches . | . . . Drone Recoveries . | . . . Exploration | -11 -10 -10 ------------- Run | Scr Mat Min Turns Passed 1138 | 105 673 360 Spaces Moved 585 | 60 343 182 Core 3 | 3 . . Treads 582 | 57 343 182 Legs . | . . . Wheels . | . . . Hover . | . . . Flight . | . . . Fastest Speed 50 | 50 160 160 Average Speed 167 | 154 171 164 Slowest Speed 200 | 160 180 200 Overloaded Moves . | . . . Propulsion Burnouts . | . . . Robots Hopped . | . . . Cave-ins Triggered . | . . . Exploration Rate (%) 28 | 6 45 34 Regions Visited 2 Branch Regions 1 Pre-discovered Areas . | . . . Known Exits Taken . | . . . Unknown Exits Taken 2 | 1 1 . Scrap Searched 1 | . . 1 Spaces Dug . | . . . Terrain Destroyed . | . . . Melee . | . . . Projectile . | . . . AOE . | . . . Terrain Rammed . | . . . Walls Destroyed . | . . . Machines Disabled . | . . . Actions | -11 -10 -10 --------- Run | Scr Mat Min Total 679 | 69 394 216 Wait 10 | . 10 . Move 583 | 59 342 182 Hop . | . . . Pick Up 10 | 4 6 . Fast Attach 6 | 6 . . Attach 5 | . 1 4 Detach . | . . . Swap 3 | . 2 1 Drop 3 | . 3 . Fire 59 | . 30 29 Melee . | . . . Ram . | . . . Kick . | . . . Crush . | . . . Escape Stasis . | . . . Rewire . | . . . Trap . | . . . Miscellaneous . | . . . Route ------- -11/Scrapyard -10/Materials (discovered 3 exits: [*Mat x2] / [*Min]) -10/Mines (discovered 1 exit: [*Mat]) History --------- Turn | Location | Event 2 | -11/Scrapyard | Discovered new exit (range 16) 106 | -11/Scrapyard | Entered Materials 157 | -10/Materials | Discovered new exit (range 11) 324 | -10/Materials | Build established: Mutant 485 | -10/Materials | Discovered new exit (range 15) 627 | -10/Materials | Discovered new exit (range 18) 779 | -10/Materials | Entered Mines 840 | -10/Mines | Assisted by bots powering up and referring to "LRC-V3" 929 | -10/Mines | Discovered new exit (range 9) 1039 | -10/Mines | Assembled infested the area 1085 | -10/Mines | Core integrity fell below 50% 1115 | -10/Mines | Core integrity fell below 20% 1119 | -10/Mines | Lost 4 parts (1p2n1w) 1139 | -10/Mines | Destroyed by as-41250 with Assembled Rifle Last Messages --------------- 01091_ The unstable cave ceiling collapses. 01091_ K-01 Serf collects debris. 01092_ The unstable cave ceiling collapses. 01094_ K-01 Serf collects debris. 01096_ D-53 Grenadier destroyed. 01097_ The unstable cave ceiling collapses. 01098_ K-01 Serf collects debris. 01100_ The unstable cave ceiling collapses. 01102_ K-01 Serf collects debris. 01107_ The unstable cave ceiling collapses. 01111_ K-01 Serf collects debris. 01113_ The unstable cave ceiling collapses. 01120_ Laser Drill disabled. 01122_ R-06 Scavenger collects Wheel. 01123_ as-71280 destroyed. 01124_ The unstable cave ceiling collapses. 01124_ Acquired 12 matter. 01126_ R-06 Scavenger collects Sml. Matter Pod. 01134_ R-06 Scavenger destroyed. 01139_ The unstable cave ceiling collapses. Map ----- +----------------------------------------------------+ | ??????????????# #?####?????####?# | | ??????????????# """ ### ####### ### | | ??????????????# """ ## ## ## | | ??????????????# """ # ############ ## | | ??????????????# # ## ##???####### #? | | ??????????????# # ##### ##??# #? | | ??????????????# ##### ##???## ##?# ##### ## | | ??????????????# ##????## ### ## [= | | ??????????????# ######## ## == | | ??????????????##### ######?# ## ### * | | ??????????????????# #??????# ##### ## ### ""= | | ??????????????????# #??????# #???#" ## """ | | ??????????????????# ######## #??##%" ###### """ | | ??????????????????# #??# " ##??# | | ??????????????????# ##########??# #??####### | | ????????????????? ???????????# #????????? | | ???????????????? ???????????# #?###????? | | ??????????????? ??????????## ## ###??? | | ????????????? ?????????## ##?? | | ???????????? """ #???????## #?? | | ??????????? """ #???##### # #?? | | ?????????# """ ##?### ## ## ##?? | | ????????????? ? ##??## ##??? | | ?????????????? #???## "" #???? | | ?????????????? ?#???## """ # [ ##???? | | ??????????????#?????# @"""% = ###????? | | ???????????????????# # #??????? | | ??????????????????# #### #??????? | | ??????????????????# =* ##??### ## #??????? | | ??????????????????## =%a#?????## ##??????? | | ???????????????????### !a ??????### ##???????? | | ?????????????????????## ???????#### #????????? | | ??????????????????????# ?????????## #????????? | | ??????????????????????# ????????# ##???????? | | ??????????????????????## ????????# #???????? | | ???????????????????????### ????????# #???????? | | ?????????????????????????? ????????## ##???????? | | ?????????????????????????? #????????####????????? | | ?????????????????????????? #????????????????????? | | ?????????????????????????? ??????????????????????? | | ?????????????????????????? ??????????????????????? | | ?????????????????????????????????????????????????? | | ?????????????????????????????????????????????????? | | ?????????????????????????????????????????????????? | | ?????????????????????????????????????????????????? | | ?????????????????????????????????????????????????? | | ?????????????????????????????????????????????????? | | ?????????????????????????????????????????????????? | | ?????????????????????????????????????????????????? | | ?????????????????????????????????????????????????? | +----------------------------------------------------+ Best States ------------- Heat Dissipation 25 Energy Generation 10 Energy Capacity 250 Matter Stores 300 Matter Capacity 300 Sight Range 16 Terrain Scan Density 10 Evasion (%) 40 Recoil Reduction 2 Item Schematics ----------------- None Robot Schematics ------------------ None Fabricated ------------ Nothing Alien Tech Used ----------------- None Achievements -------------- None Challenges ------------ None Game ------ Seed SurgeStealthProcessor Manual? 0 Play Time 00:08:00 Cumulative 178.2 hours Start 2020.09.28 @ 14:27:01 End 2020.09.28 @ 14:33:16 Sessions 1 Manual Loads 0 Difficulty Rogue Special Mode None Game No. 168 Rogue 107 Adventurer 61 Explorer 0 Win Type - Total 9 Types 7/0/2/0/0/0/0/0/0 Lore% 48 Gallery% 75 Achievement% 59 Wizard Run 0 Options --------- ASCII 0 Keyboard 0 Movement Mouse Keybinds 0 Fullscreen 2 Font 24/Proggy Map View 76x50 Tactical HUD 1 Map Filters NONE Filters NONE Steam 1 RUN: 1e000306-3e50-4317-baef-7e6e262dabf1